[Event "56th Rubinstein Memorial D 2020"]
[Site "Polanica Zdroj"]
[Date "2020.08.18"]
[Round "4.6"]
[White "Lewandrowski, Tomasz"]
[Black "Szczygiel, Jakub"]
[Result "1/2-1/2"]
[ECO "B27"]
[WhiteElo "1879"]
[BlackElo "1802"]
[Annotator "NA RC"]
[PlyCount "101"]
[EventDate "2020.08.15"]
[EventType "swiss"]
[EventCountry "POL"]
[SourceTitle "playchess.com"]
[Source "ChessBase"]
[SourceQuality "1"]
[TimeControl "40/5400+30:1800+30"]

{[%evp 8,81,22,34,39,33,44,16,35,21,28,38,27,41,41,14,25,-22,-7,-23,0,-3,-25,-14,32767,32767,32767,0,27,2,21,19,33,-11,0,0,0,10,-18,0,1,0,0,32767,32767,32767,32767,32767,33,21,32767,32767,18,32767,32767,32767,0,0,25,0,28,0,0,-47,0,32767,32767,32767,32767,0,0,0,0,0,0,-52]} 1. e4 {[%emt 0:00:00]} c5 {[%emt 0:00:00]} 2. Nf3 {[%emt 0:00:00]} g6 {[%emt 0:00:00]} 3. c3 {[%emt 0:03:29]} Bg7 {[%emt 0:00:00]} 4. d4 {[%emt 0:00:12]} cxd4 {[%emt 0:00:02]} 5. cxd4 {[%emt 0:00:11]} d5 {[%emt 0:00:07]} 6. e5 {[%emt 0:00:15]} Nc6 {[%emt 0:00:18]} 7. h3 {[%emt 0:01:27]} e6 {[%emt 0:04:39] B27: Sicilian: 2 Nf3, unusual Black 2nd moves.} 8. Bb5 {[%emt 0:06:12] [#]} Nge7 $146 {[%emt 0:00:58]} ({Predecessor:} 8... Bd7 9. Nc3 f6 10. O-O Nge7 11. exf6 Bxf6 12. Re1 O-O 13. Bh6 Re8 14. Bxc6 Nxc6 15. Bf4 {½-½ (48) Novikov,V (2329)-Hentunen,A (2341) Saint Vincent 2005}) 9. O-O {[%emt 0:01:24]} O-O {[%emt 0:00:12]} 10. Bxc6 {[%emt 0:01:58]} Nxc6 {[%emt 0:00:21]} 11. Nc3 {[%emt 0:00:45]} f6 {[%emt 0:02:02]} 12. Bf4 {[%emt 0:05:12]} fxe5 {[%emt 0:00:23]} 13. Bxe5 {[%emt 0:00:10]} Nxe5 {[%emt 0:00:11]} 14. Nxe5 {[%emt 0:00:21]} Bxe5 {[%emt 0:01:22]} 15. dxe5 {[%emt 0:00:01]} Bd7 {[%emt 0:01:12]} 16. Qd4 {[%emt 0:09:44]} a6 {[%emt 0:03:31]} 17. Rad1 {[%emt 0:05:03]} Bc6 {[%emt 0:01:47]} 18. Rd2 {[%emt 0:01:30]} Rc8 {[%emt 0:02:44]} 19. b3 {[%emt 0:03:33]} Qa5 {[%emt 0:03:06]} 20. Nd1 {[%emt 0:00:45]} Bb5 {[%emt 0:01:29]} 21. Re1 {[%emt 0:01:58]} Rc2 {[%emt 0:04:16]} 22. Rxc2 {[%emt 0:00:20]} Qxe1+ {[%emt 0:00:07]} 23. Kh2 {[%emt 0:00:07]} Bc6 {[%emt 0:08:42]} 24. f3 {[%emt 0:03:59]} g5 {[%emt 0:03:18]} 25. Nf2 {[%emt 0:07:30]} Rf4 {[%emt 0:00:29]} 26. Qb2 {[%emt 0:01:47]} Rf5 {[%emt 0:07:21]} 27. Re2 {[%emt 0:03:25]} Qb4 {[%emt 0:02:14]} 28. Nd3 {[%emt 0:05:56]} Qb6 {[%emt 0:06:48]} 29. a4 {[%emt 0:00:37]} a5 {[%emt 0:00:42]} 30. Nf2 {[%emt 0:04:55]} Qb4 {[%emt 0:01:45]} 31. Nd3 {[%emt 0:02:57]} Qb6 {[%emt 0:00:15]} 32. Nf2 {[%emt 0:00:05]} Qb4 {[%emt 0:00:09]} 33. Ng4 {[%emt 0:00:09]} Kg7 {[%emt 0:02:18]} 34. Nf6 {[%emt 0:02:14]} (34. Ne3 $5 {[%cal Re3f5]} Rf8 35. Ng4 $11) 34... d4 {[%emt 0:02:13]} 35. Nh5+ {[%emt 0:02:24]} Kg8 {[%emt 0:07:36]} ({Black should play} 35... Kg6 $15 36. Ng3 d3) 36. Ng3 {[%emt 0:00:02]} Rf4 {[%emt 0:00:44]} 37. Qd2 {[%emt 0:01:30]} Bd5 {[%emt 0:07:20]} 38. Nh5 {[%emt 0:02:31]} Qxd2 {[%emt 0:01:40]} 39. Rxd2 {[%emt 0:00:02]} Rf5 $1 {[%emt 0:00:30]} 40. Nf6+ {[%emt 0:01:02]} Kf7 {[%emt 0:01:36]} 41. Nxd5 $15 {[%emt 0:32:27]} exd5 {[%emt 0:30:11]} 42. Rxd4 {[%emt 0:00:04]} Rxe5 {[%emt 0:00:11]} 43. b4 {[%emt 0:00:54]} axb4 {[%emt 0:00:41]} 44. Rxb4 {[%emt 0:00:01]} Re7 {[%emt 0:00:21]} 45. Kg3 {[%emt 0:01:21]} Kg6 {[%emt 0:00:21]} 46. f4 {[%emt 0:00:48]} Rc7 {[%emt 0:01:17]} 47. fxg5 {[%emt 0:00:51]} Kxg5 {[%emt 0:00:10]} 48. Rd4 {[%emt 0:01:14]} Rc5 {[%emt 0:00:34]} 49. Rb4 {[%emt 0:01:36]} Rc7 {[%emt 0:00:26]} 50. Rd4 {[%emt 0:00:06]} Rc5 {[%emt 0:01:08]} 51. Rb4 {[%emt 0:00:07]} 1/2-1/2

[Event "56th Rubinstein Memorial D 2020"]
[Site "Polanica Zdroj"]
[Date "2020.08.18"]
[Round "4.7"]
[White "Kozlowski, Pawel"]
[Black "Kaczanowski, Pawel"]
[Result "1-0"]
[ECO "B30"]
[WhiteElo "1913"]
[BlackElo "1655"]
[Annotator "RC"]
[PlyCount "35"]
[EventDate "2020.08.15"]
[EventType "swiss"]
[EventCountry "POL"]
[SourceTitle "playchess.com"]
[Source "ChessBase"]
[SourceQuality "1"]
[TimeControl "40/5400+30:1800+30"]

1. e4 {[%emt 0:00:00]} c5 {[%emt 0:00:00]} 2. Nf3 {[%emt 0:00:15]} Nc6 {[%emt 0:00:00]} 3. c3 {[%emt 0:01:36]} Nf6 {[%emt 0:01:31]} 4. d3 {[%emt 0:00:40]} Qc7 {[%emt 0:05:54]} 5. Be2 {[%emt 0:02:00]} d5 {[%emt 0:01:22]} 6. Nbd2 {[%emt 0:04:04]} Bg4 {[%emt 0:02:20]} 7. O-O {[%emt 0:01:47]} e6 {[%emt 0:04:07]} 8. Re1 {[%emt 0:17:24]} Be7 {[%emt 0:05:03]} 9. h3 {[%emt 0:15:09]} Bh5 {[%emt 0:04:35]} 10. e5 {[%emt 0:07:53]} Nxe5 {[%emt 0:10:06]} 11. Nxe5 {[%emt 0:01:22]} Qxe5 {[%emt 0:01:14]} 12. Bg4 {[%emt 0:01:26]} Qxe1+ {[%emt 0:11:07]} 13. Qxe1 {[%emt 0:00:23]} Nxg4 {[%emt 0:00:06]} 14. hxg4 {[%emt 0:00:07]} Bxg4 {[%emt 0:00:06]} 15. Nf1 {[%emt 0:02:19]} O-O-O {[%emt 0:02:03]} 16. Bf4 {[%emt 0:00:53]} c4 {[%emt 0:01:39]} 17. dxc4 {[%emt 0:00:39]} dxc4 {[%emt 0:00:05]} 18. Qe4 {[%emt 0:00:25]} 1-0

[Event "56th Rubinstein Memorial D 2020"]
[Site "Polanica Zdroj"]
[Date "2020.08.18"]
[Round "4.10"]
[White "Pyka, Roman"]
[Black "Bialik, Nikodem"]
[Result "1-0"]
[ECO "A13"]
[WhiteElo "1873"]
[BlackElo "1552"]
[Annotator "NA RC"]
[PlyCount "109"]
[EventDate "2020.08.15"]
[EventType "swiss"]
[EventCountry "POL"]
[SourceTitle "playchess.com"]
[Source "ChessBase"]
[SourceQuality "1"]
[TimeControl "40/5400+30:1800+30"]

{[%evp 8,109,79,72,72,88,129,113,150,126,137,104,110,113,278,95,143,98,138,136,147,99,32767,36,32767,113,32767,107,89,97,107,108,91,98,112,107,112,120,111,60,83,50,85,32767,32767,32767,32767,32767,32767,32767,32767,32767,32767,32767,32767,32767,234,32767,32767,32767,32767,32767,32767,32767,32767,32767,32767,32767,32767,32767,32767,32767,32767,32767,156,32767,32767,32767,32767,308,32767,497,416,520,428,600,688,800,595,752,1105,928,789,875,1270,1104,777,1217,1447,12850,29982,29983,29983,29987]} 1. c4 {[%emt 0:00:00]} e6 {[%emt 0:01:41]} 2. e4 {[%emt 0:00:00]} Nf6 {[%emt 0:01:30]} 3. e5 {[%emt 0:01:18]} Ng8 {[%emt 0:00:21]} 4. Nc3 {[%emt 0:01:10]} d5 {[%emt 0:01:04]} 5. d4 {[%emt 0:00:57]} dxc4 {[%emt 0:02:14]} 6. Bxc4 {[%emt 0:00:13] A18: English Opening: Flohr-Mikenas System (1 c4 Nf6 2 Nc3 e6 3 e4).} c6 {[%emt 0:00:32]} (6... Ne7 $142) 7. Nf3 {[%emt 0:00:16]} Nd7 {[%emt 0:01:37]} 8. O-O {[%emt 0:00:16]} Nb6 {[%emt 0:00:36]} 9. Bd3 {[%emt 0:00:44]} Ne7 {[%emt 0:02:30] [#]} 10. Bg5 $146 {[%emt 0:01:02]} ({Predecessor:} 10. Ne4 Ned5 11. Bg5 Qc7 12. Rc1 Bd7 13. a3 h6 14. Bh4 Nf4 15. Re1 Nxd3 16. Qxd3 {1-0 (34) Biebinger,G (2309)-Just,J (2129) Sottrum 2005}) 10... h6 $2 {[%emt 0:01:07] [#]} (10... Qd7 $16 {is a better defense.}) 11. Bh4 $2 {[%emt 0:01:24]} (11. Ne4 $1 $18 {and the rest is easy.}) 11... g5 {[%emt 0:01:12] [#]} 12. Ne4 $1 {[%emt 0:00:15]} Ned5 {[%emt 0:02:10]} 13. Bg3 {[%emt 0:00:33]} Be7 {[%emt 0:01:26]} 14. a4 {[%emt 0:06:29]} a5 {[%emt 0:01:11]} 15. Nd6+ {[%emt 0:08:08]} (15. h3 $16) 15... Bxd6 {[%emt 0:03:43]} 16. exd6 {[%emt 0:00:16]} Nf4 {[%emt 0:00:48]} 17. Bxf4 {[%emt 0:06:05]} gxf4 {[%emt 0:00:07]} 18. Ne5 {[%emt 0:00:08]} Qxd6 {[%emt 0:03:46]} 19. Qh5 {[%emt 0:00:12]} Rf8 {[%emt 0:10:02]} 20. Rfd1 {[%emt 0:04:20]} Qe7 {[%emt 0:06:24]} 21. Qxh6 {[%emt 0:00:47]} Nd5 {[%emt 0:01:09]} 22. Be4 {[%emt 0:00:55]} Qf6 {[%emt 0:04:36]} 23. Qxf6 {[%emt 0:00:21]} (23. Qh3 $16) 23... Nxf6 {[%emt 0:00:04]} 24. Bf3 {[%emt 0:00:08]} Bd7 {[%emt 0:01:31]} 25. Nd3 {[%emt 0:00:11]} Nd5 {[%emt 0:01:06]} 26. Bxd5 {[%emt 0:00:12]} exd5 {[%emt 0:01:27]} 27. Nxf4 {[%emt 0:00:17]} O-O-O {[%emt 0:00:27]} 28. f3 {[%emt 0:01:32]} Rh8 {[%emt 0:01:07]} 29. g3 {[%emt 0:01:25]} Bf5 {[%emt 0:01:23]} 30. h4 {[%emt 0:00:11]} Rdg8 {[%emt 0:00:31]} 31. Kf2 {[%emt 0:00:10]} Kc7 {[%emt 0:03:08]} 32. Rac1 {[%emt 0:00:36]} Kd6 {[%emt 0:00:19]} 33. Re1 {[%emt 0:00:32]} Re8 {[%emt 0:00:39]} 34. Re3 {[%emt 0:02:19]} Rxe3 {[%emt 0:00:26]} 35. Kxe3 {[%emt 0:00:09]} Re8+ {[%emt 0:00:20]} 36. Kd2 {[%emt 0:00:25]} Rg8 {[%emt 0:01:26]} 37. Rg1 {[%emt 0:00:25]} b6 {[%emt 0:00:55]} 38. g4 {[%emt 0:00:27]} Bd7 {[%emt 0:00:50]} 39. h5 {[%emt 0:01:08]} c5 {[%emt 0:00:55]} 40. dxc5+ {[%emt 0:00:35]} bxc5 {[%emt 0:00:14]} 41. b3 {[%emt 0:30:13]} Ke5 {[%emt 0:31:52]} 42. Nd3+ {[%emt 0:00:16]} Kd4 {[%emt 0:01:45]} 43. Re1 {[%emt 0:09:06]} f5 {[%emt 0:07:34]} 44. Ne5 {[%emt 0:03:38]} Be8 {[%emt 0:01:19]} 45. h6 {[%emt 0:01:22]} c4 {[%emt 0:04:46]} 46. bxc4 {[%emt 0:02:33]} dxc4 {[%emt 0:01:18]} 47. gxf5 {[%emt 0:01:57]} Rg2+ {[%emt 0:04:50]} 48. Kc1 {[%emt 0:00:21]} Bxa4 {[%emt 0:01:29]} 49. Re4+ {[%emt 0:02:40]} Kd5 {[%emt 0:00:41]} 50. Nxc4 {[%emt 0:00:36]} Rh2 {[%emt 0:02:41]} 51. Nb6+ {[%emt 0:00:08]} Kc6 {[%emt 0:00:08]} 52. Nxa4 {[%emt 0:00:10]} Rxh6 {[%emt 0:00:05]} 53. Re6+ {[%emt 0:00:24]} Rxe6 {[%emt 0:00:04]} 54. fxe6 {[%emt 0:00:09]} Kd6 {[%emt 0:00:04] [#]} 55. Nc5 {[%emt 0:00:08]} 1-0

[Event "56th Rubinstein Memorial D 2020"]
[Site "Polanica Zdroj"]
[Date "2020.08.18"]
[Round "4.11"]
[White "Podgorski, Maciej"]
[Black "Zielinski, Marcin"]
[Result "1-0"]
[ECO "B12"]
[WhiteElo "1810"]
[BlackElo "1527"]
[Annotator "NA RC"]
[PlyCount "61"]
[EventDate "2020.08.15"]
[EventType "swiss"]
[EventCountry "POL"]
[SourceTitle "playchess.com"]
[Source "ChessBase"]
[SourceQuality "1"]
[TimeControl "40/5400+30:1800+30"]

{[%evp 8,47,25,16,23,-8,0,-2,0,-38,14,5,0,1,85,-3,88,128,104,124,199,221,32767,143,200,241,597,619,601,624,1222,1307,1212,1284,1697,921,1479,1283,1264,1354,1324,1454]} 1. e4 {[%emt 0:00:00]} c6 {[%emt 0:00:00]} 2. d4 {[%emt 0:00:00]} d5 {[%emt 0:00:00]} 3. e5 {[%emt 0:00:00]} c5 {[%emt 0:00:00]} 4. dxc5 {[%emt 0:00:00]} Nc6 {[%emt 0:00:00]} 5. Nf3 {[%emt 0:00:00]} Bg4 {[%emt 0:00:00]} 6. h3 {[%emt 0:00:41] B12: Caro-Kann: Advance Variation.} Bxf3 {[%emt 0:00:45]} 7. Qxf3 {[%emt 0:00:08]} e6 {[%emt 0:02:27]} 8. b4 {[%emt 0:06:01] [#]} Nxe5 $146 {[%emt 0:06:44]} (8... a5 $15) ({Predecessor:} 8... Nxb4 9. Bb5+ Nc6 10. O-O Bxc5 11. Qg3 g6 12. Nd2 Nge7 13. Nb3 Bb6 14. Bg5 Qc7 {1-0 (36) Annageldyev,O (2396)-Manca,F (2425) Budapest 2012}) 9. Bb5+ {[%emt 0:04:01]} Nc6 {[%emt 0:00:46]} 10. Bb2 {[%emt 0:00:37]} Qh4 {[%emt 0:05:21]} (10... Nf6 $11) 11. g4 {[%emt 0:02:48]} ({Better is} 11. c4 $16) 11... Nge7 {[%emt 0:02:02]} (11... h5 $11) 12. Nd2 {[%emt 0:01:43]} a6 {[%emt 0:01:05]} 13. Ba4 {[%emt 0:01:11]} O-O-O {[%emt 0:04:17]} (13... h5 $16) 14. Qxf7 {[%emt 0:01:49]} Qh6 {[%emt 0:04:24]} 15. a3 {[%emt 0:00:23]} d4 {[%emt 0:01:29]} 16. Nc4 {[%emt 0:01:26]} Nd5 $2 {[%emt 0:04:35]} (16... Kb8 {is a better chance.} 17. h4 Qf6) 17. Bxc6 {[%emt 0:01:03]} bxc6 {[%emt 0:00:20]} 18. Qa7 {[%emt 0:02:07]} Qg6 {[%emt 0:02:26]} 19. O-O-O {[%emt 0:03:53]} Qg5+ {[%emt 0:03:27]} 20. Kb1 {[%emt 0:00:09]} Rd7 {[%emt 0:00:53]} 21. Qa8+ {[%emt 0:01:52]} Kc7 {[%emt 0:00:31]} 22. Nb6 {[%emt 0:00:59]} Nxb6 {[%emt 0:01:01]} 23. cxb6+ {[%emt 0:00:05]} Kxb6 {[%emt 0:02:50]} 24. Bxd4+ $18 {[%emt 0:04:31]} Kb5 {[%emt 0:07:11]} 25. c4+ {[%emt 0:00:18]} Kxc4 {[%emt 0:01:53]} 26. Qxc6+ {[%emt 0:00:06]} Bc5 {[%emt 0:01:39]} 27. Qxe6+ {[%emt 0:01:05]} Rd5 {[%emt 0:00:52]} 28. Qe2+ {[%emt 0:00:38]} Kb3 {[%emt 0:00:19]} 29. Qd3+ {[%emt 0:00:37]} Ka4 {[%emt 0:00:31]} 30. Qxa6+ {[%emt 0:00:04]} Kb3 {[%emt 0:00:16]} 31. Rd3# {[%emt 0:00:05]} 1-0

[Event "56th Rubinstein Memorial D 2020"]
[Site "Polanica Zdroj"]
[Date "2020.08.18"]
[Round "4.12"]
[White "Kalkowski, Igor"]
[Black "Wolska, Marta"]
[Result "*"]
[ECO "E21"]
[WhiteElo "1747"]
[BlackElo "1551"]
[Annotator "NA RC"]
[PlyCount "36"]
[EventDate "2020.08.15"]
[EventType "swiss"]
[EventCountry "POL"]
[SourceTitle "playchess.com"]
[Source "ChessBase"]
[SourceQuality "1"]
[TimeControl "40/5400+30:1800+30"]

1. d4 Nf6 2. c4 e6 3. Nc3 Bb4 4. Nf3 O-O 5. Bf4 b6 6. e3 Bb7 7. Bd3 d6 8. Qc2 Nbd7 9. O-O Bxc3 10. bxc3 Qe7 11. Bg5 h6 12. Bh4 Rac8 13. Qa4 a5 14. e4 e5 15. Rae1 Rfe8 16. Bxf6 Nxf6 17. c5 Qd7 18. Qc2 Nh5 *

[Event "56th Rubinstein Memorial D 2020"]
[Site "Polanica Zdroj"]
[Date "2020.08.18"]
[Round "4.13"]
[White "Brzozowski, Pawel"]
[Black "Bukala, Weronika"]
[Result "1-0"]
[ECO "B01"]
[WhiteElo "1620"]
[BlackElo "1504"]
[Annotator "NA"]
[PlyCount "55"]
[EventDate "2020.08.15"]
[EventType "swiss"]
[EventCountry "POL"]
[SourceTitle "playchess.com"]
[Source "ChessBase"]
[SourceQuality "1"]
[TimeControl "40/5400+30:1800+30"]

1. e4 {[%emt 0:00:00]} d5 {[%emt 0:00:00]} 2. exd5 {[%emt 0:00:05]} Qxd5 {[%emt 0:00:00]} 3. c4 {[%emt 0:00:46]} Qd6 {[%emt 0:00:18]} 4. d4 {[%emt 0:02:13]} Nc6 {[%emt 0:00:40]} 5. d5 {[%emt 0:02:17]} Ne5 {[%emt 0:00:41]} 6. Nc3 {[%emt 0:03:31]} a6 {[%emt 0:00:54]} 7. Ne4 {[%emt 0:03:02]} Qg6 {[%emt 0:01:15]} 8. Qd4 {[%emt 0:02:40]} Nf6 {[%emt 0:02:09]} 9. Ng3 {[%emt 0:04:50]} Nfd7 {[%emt 0:03:26]} 10. f4 {[%emt 0:02:48]} c5 {[%emt 0:06:05]} 11. Qd1 {[%emt 0:00:47]} Qb6 {[%emt 0:08:26]} 12. fxe5 {[%emt 0:00:39]} Nxe5 {[%emt 0:00:15]} 13. Qc2 {[%emt 0:07:56]} g6 {[%emt 0:02:25]} 14. b3 {[%emt 0:05:10]} Bg7 {[%emt 0:03:03]} 15. Bb2 {[%emt 0:00:57]} O-O {[%emt 0:00:53]} 16. Nf3 {[%emt 0:01:21]} Nxf3+ {[%emt 0:01:32]} 17. gxf3 {[%emt 0:00:08]} Qb4+ {[%emt 0:00:10]} 18. Kf2 {[%emt 0:01:10]} Bh6 {[%emt 0:01:30]} 19. Re1 {[%emt 0:06:30]} e6 {[%emt 0:01:27]} 20. Ne4 {[%emt 0:00:38]} f5 {[%emt 0:02:22]} 21. Nf6+ {[%emt 0:07:29]} Kf7 {[%emt 0:00:10]} 22. Nxh7 {[%emt 0:00:14]} Rd8 {[%emt 0:01:06]} 23. Qe2 {[%emt 0:03:13]} Qb6 {[%emt 0:02:04]} 24. Qe5 {[%emt 0:01:15]} Rg8 {[%emt 0:04:26]} 25. Qf6+ {[%emt 0:01:31]} Ke8 {[%emt 0:00:21]} 26. dxe6 {[%emt 0:00:37]} Qc7 {[%emt 0:04:43]} 27. e7 {[%emt 0:02:34]} Be6 {[%emt 0:01:08]} 28. Qxe6 {[%emt 0:00:48]} 1-0

[Event "56th Rubinstein Memorial D 2020"]
[Site "Polanica Zdroj"]
[Date "2020.08.18"]
[Round "4.14"]
[White "Ochenduszko, Bartosz"]
[Black "Borowski, Przemyslaw"]
[Result "1/2-1/2"]
[ECO "A45"]
[WhiteElo "1531"]
[BlackElo "1790"]
[Annotator "NA RC"]
[PlyCount "78"]
[EventDate "2020.08.15"]
[EventType "swiss"]
[EventCountry "POL"]
[SourceTitle "playchess.com"]
[Source "ChessBase"]
[SourceQuality "1"]
[TimeControl "40/5400+30:1800+30"]

1. d4 {[%emt 0:00:00]} Nf6 {[%emt 0:00:00]} 2. Bf4 {[%emt 0:00:00]} c5 {[%emt 0:00:20]} 3. e3 {[%emt 0:02:10]} g6 {[%emt 0:00:17]} 4. Nf3 {[%emt 0:02:22]} Qb6 {[%emt 0:01:36]} 5. Nc3 {[%emt 0:02:24]} Bg7 {[%emt 0:03:11]} 6. Qd2 {[%emt 0:02:40]} O-O {[%emt 0:02:51]} 7. Na4 {[%emt 0:03:26]} Qb4 {[%emt 0:03:38]} 8. Nxc5 {[%emt 0:02:01]} Qxb2 {[%emt 0:03:13]} 9. Qc1 {[%emt 0:04:58]} Qc3+ {[%emt 0:02:53]} 10. Nd2 {[%emt 0:00:05]} d6 {[%emt 0:00:55]} 11. Ncb3 {[%emt 0:14:02]} e5 {[%emt 0:01:36]} 12. dxe5 {[%emt 0:02:25]} dxe5 {[%emt 0:01:33]} 13. Bg3 {[%emt 0:00:14]} Rd8 {[%emt 0:03:20]} 14. Bd3 {[%emt 0:01:25]} e4 {[%emt 0:06:40]} 15. Be2 {[%emt 0:00:02]} Nc6 {[%emt 0:12:15]} 16. O-O {[%emt 0:04:24]} Nb4 {[%emt 0:02:46]} 17. Rb1 {[%emt 0:00:34]} Nxa2 {[%emt 0:02:19]} 18. Qa3 {[%emt 0:01:18]} Rxd2 {[%emt 0:07:10]} 19. Rfd1 {[%emt 0:08:34]} Be6 {[%emt 0:02:38]} 20. Rxd2 {[%emt 0:00:59]} Bxb3 {[%emt 0:07:45]} 21. Rbd1 {[%emt 0:17:56]} Bd5 {[%emt 0:00:43]} 22. Rxd5 {[%emt 0:00:47]} Qxa3 {[%emt 0:01:48]} 23. Bd6 {[%emt 0:02:43]} Nxd5 {[%emt 0:06:26]} 24. Bxa3 {[%emt 0:00:06]} Ndc3 {[%emt 0:00:24]} 25. Re1 {[%emt 0:00:10]} Nxe2+ 26. Rxe2 {[%emt 0:00:04]} Rd8 {[%emt 0:00:39]} 27. f3 {[%emt 0:01:00]} Nc3 {[%emt 0:00:31]} 28. Re1 {[%emt 0:00:34]} exf3 {[%emt 0:00:51]} 29. gxf3 {[%emt 0:00:17]} Rd1 {[%emt 0:00:14]} 30. Kf2 {[%emt 0:01:02]} Rxe1 {[%emt 0:00:27]} 31. Kxe1 {[%emt 0:00:01]} Bf8 {[%emt 0:01:11]} 32. Bb2 {[%emt 0:00:37]} Nd5 {[%emt 0:00:48]} 33. Ke2 {[%emt 0:00:47]} Bc5 {[%emt 0:00:40]} 34. e4 {[%emt 0:00:52]} Nf4+ {[%emt 0:00:47]} 35. Kd2 {[%emt 0:00:05]} Kf8 {[%emt 0:00:39]} 36. Kc3 {[%emt 0:01:48]} b5 {[%emt 0:00:57]} 37. Kb3 {[%emt 0:01:20]} Ne6 {[%emt 0:02:54]} 38. Bf6 {[%emt 0:03:12]} Nd4+ {[%emt 0:01:19]} 39. Kc3 {[%emt 0:00:18]} Nxf3 {[%emt 0:00:36]} 1/2-1/2

[Event "56th Rubinstein Memorial D 2020"]
[Site "Polanica Zdroj"]
[Date "2020.08.18"]
[Round "4.15"]
[White "Zyla, Tomasz"]
[Black "Ciechonski, Piotr"]
[Result "1/2-1/2"]
[ECO "A43"]
[WhiteElo "1543"]
[BlackElo "1774"]
[Annotator "NA RC"]
[PlyCount "146"]
[EventDate "2020.08.15"]
[EventType "swiss"]
[EventCountry "POL"]
[SourceTitle "playchess.com"]
[Source "ChessBase"]
[SourceQuality "1"]
[TimeControl "40/5400+30:1800+30"]

1. d4 {[%emt 0:00:00]} c5 {[%emt 0:00:28]} 2. e3 {[%emt 0:00:00]} cxd4 {[%emt 0:01:31]} 3. exd4 {[%emt 0:00:01]} Nf6 {[%emt 0:00:27]} 4. Nf3 {[%emt 0:00:45]} g6 {[%emt 0:00:02]} 5. c4 {[%emt 0:00:46]} d5 {[%emt 0:00:20]} 6. Nc3 {[%emt 0:00:54]} Bg7 {[%emt 0:00:17]} 7. Bg5 {[%emt 0:02:21]} dxc4 {[%emt 0:00:22]} 8. Bxc4 {[%emt 0:00:38]} O-O {[%emt 0:00:05]} 9. O-O {[%emt 0:02:03]} Bf5 {[%emt 0:01:21]} 10. Qb3 {[%emt 0:06:31]} Nc6 {[%emt 0:01:05]} 11. Rfd1 {[%emt 0:03:37]} Na5 {[%emt 0:00:03]} 12. Qa4 {[%emt 0:02:17]} Nxc4 {[%emt 0:00:57]} 13. Qxc4 {[%emt 0:00:05]} Bg4 {[%emt 0:03:06]} 14. Qd3 {[%emt 0:18:05]} Qa5 {[%emt 0:01:28]} 15. Bd2 {[%emt 0:23:18]} Qh5 {[%emt 0:02:09]} 16. Rac1 {[%emt 0:16:50]} Bxf3 {[%emt 0:01:48]} 17. Qxf3 {[%emt 0:00:06]} Qxf3 {[%emt 0:00:29]} 18. gxf3 {[%emt 0:00:05]} Rac8 {[%emt 0:01:20]} 19. Be3 {[%emt 0:02:59]} e6 {[%emt 0:01:58]} 20. Kf1 {[%emt 0:00:38]} Rfd8 {[%emt 0:01:20]} 21. Ke2 {[%emt 0:01:15]} a6 {[%emt 0:02:45]} 22. Na4 {[%emt 0:04:10]} Nd5 {[%emt 0:01:28]} 23. a3 {[%emt 0:01:50]} Bf8 {[%emt 0:00:59]} 24. Rxc8 {[%emt 0:07:21]} Rxc8 {[%emt 0:00:04]} 25. Rc1 {[%emt 0:00:14]} Rxc1 {[%emt 0:03:45]} 26. Bxc1 {[%emt 0:00:03]} Bd6 {[%emt 0:00:44]} 27. h3 {[%emt 0:01:46]} b6 {[%emt 0:10:03]} 28. Kd3 {[%emt 0:02:15]} f5 {[%emt 0:01:11]} 29. b4 {[%emt 0:02:35]} Kf7 {[%emt 0:02:13]} 30. Bg5 {[%emt 0:00:45]} Ke8 {[%emt 0:00:57]} 31. Nc3 {[%emt 0:00:21]} Kd7 {[%emt 0:02:40]} 32. Nxd5 {[%emt 0:00:11]} exd5 {[%emt 0:00:15]} 33. Bd2 {[%emt 0:00:37]} f4 {[%emt 0:02:15]} 34. Bc1 {[%emt 0:00:52]} b5 {[%emt 0:00:46]} 35. Bb2 {[%emt 0:00:26]} Ke6 {[%emt 0:00:06]} 36. Ke2 {[%emt 0:00:01]} Kd7 {[%emt 0:01:19]} 37. Kd3 {[%emt 0:00:07]} Kc7 {[%emt 0:00:29]} 38. Ke2 {[%emt 0:00:50]} Kb6 {[%emt 0:02:38]} 39. Bc3 {[%emt 0:00:13]} Bc7 {[%emt 0:00:57]} 40. Bd2 {[%emt 0:00:18]} Kc6 {[%emt 0:00:48]} 41. Kd3 {[%emt 0:30:15]} Kd7 {[%emt 0:31:11]} 42. Ke2 {[%emt 0:00:12]} Ke6 {[%emt 0:00:29]} 43. Kf1 {[%emt 0:00:43]} Kf5 {[%emt 0:00:02]} 44. Bc3 {[%emt 0:00:42]} Bd8 {[%emt 0:01:07]} 45. Bd2 {[%emt 0:00:21]} Bf6 {[%emt 0:00:12]} 46. Bc3 {[%emt 0:00:05]} h5 {[%emt 0:01:48]} 47. Bb2 {[%emt 0:00:51]} Kg5 {[%emt 0:00:16]} 48. Bc3 {[%emt 0:00:57]} Kh4 {[%emt 0:00:09]} 49. Kg2 {[%emt 0:00:01]} Kg5 {[%emt 0:02:42]} 50. Kf1 {[%emt 0:00:10]} Kf5 {[%emt 0:00:10]} 51. Bb2 {[%emt 0:00:23]} g5 {[%emt 0:00:42]} 52. Kg2 {[%emt 0:01:16]} Bd8 {[%emt 0:00:31]} 53. Bc3 {[%emt 0:00:17]} Bb6 {[%emt 0:00:31]} 54. Bb2 {[%emt 0:01:07]} a5 {[%emt 0:00:39]} 55. Bc3 {[%emt 0:00:13]} axb4 {[%emt 0:01:31]} 56. axb4 {[%emt 0:00:06]} Bc7 {[%emt 0:00:18]} 57. Bb2 {[%emt 0:01:40]} Bd6 {[%emt 0:02:50]} 58. Bc3 {[%emt 0:00:02]} g4 {[%emt 0:00:34]} 59. hxg4+ {[%emt 0:00:08]} hxg4 {[%emt 0:00:16]} 60. fxg4+ {[%emt 0:01:32]} Ke4 {[%emt 0:00:07]} 61. g5 {[%emt 0:00:11]} f3+ {[%emt 0:01:57]} 62. Kh3 {[%emt 0:00:31]} Kd3 {[%emt 0:00:18]} 63. g6 {[%emt 0:00:23]} Bf8 {[%emt 0:00:08]} 64. Bb2 {[%emt 0:01:07]} Kc2 {[%emt 0:03:44]} 65. Ba1 {[%emt 0:00:06]} Kb3 {[%emt 0:01:18]} 66. Kg4 {[%emt 0:00:16]} Kxb4 {[%emt 0:00:17]} 67. Kxf3 {[%emt 0:00:15]} Kb3 {[%emt 0:00:18]} 68. Kf4 {[%emt 0:00:36]} b4 {[%emt 0:00:06]} 69. Ke5 {[%emt 0:01:22]} Ka2 {[%emt 0:00:05]} 70. Kxd5 {[%emt 0:00:26]} Kxa1 {[%emt 0:00:05]} 71. Kc4 {[%emt 0:00:25]} Ka2 {[%emt 0:01:06]} 72. g7 {[%emt 0:00:21]} Bxg7 {[%emt 0:00:09]} 73. Kxb4 {[%emt 0:00:04]} Bf8+ 1/2-1/2